Cogmind - Beta 12 X4 @@@ ROGUE MODE // 2022.09.28 @ 18:20:12 Player: youngster Result: Destroyed by exploding Power Conduit Performance ------------- Evolutions (5) 2500 Regions Visited (20) 4000 Robots Destroyed (322) 1610 Value Destroyed (10876) 10876 Prototype IDs (66) 1320 Alien Tech Used (1) 200 Bonus (2173) 2173 TOTAL SCORE: 22679 Bonus ------- High Alert Combat Kills 1552 Follower Combat Kills 446 Entered Garrisons 600 Aligned with FarCom 300 Met Data Miner 300 Friendly Fire -1025 Cogmind --------- Core Integrity 0/1000 Matter 300/300 Energy 100/100 System Corruption 9% Temperature Cool (24) Movement Core (50) Location -5/Factory Parts ------- > --- POWER (2) -------- (None) > --- PROPULSION (6) --- (None) > --- UTILITY (6) ------ (None) > --- WEAPON (4) ------- (None) > --- INVENTORY (5) ---- Encrypted Comm Array Improved Heavy Armor Plating Peak State ------------ > --- POWER ------------ Multi-Cold Reactor > --- PROPULSION ------- Biometal Heavy Treads Advanced Heavy Siege Treads Centrium Exoskeleton > --- UTILITY ---------- Armored Scrap Engine Huge Storage Unit Enhanced Optical Array Advanced Targeting Computer Improved Thermal Shield > --- WEAPON ----------- KE Penetrator KE Penetrator Cycling Energy Nova Construct/C Power Maul > --- INVENTORY -------- Quantum Reactor Advanced Heavy Siege Treads Advanced Heavy Siege Treads Armored Wheel Improved Cooling System Advanced Energy Well High-capacity Matter Pod Improved Terrain Scanner Seismic Detector Encrypted Comm Array Advanced Weapon Cycler Improved Transmission Jammer Improved Medium Armor Plating Improved Heavy Armor Plating Graphene Brace EM Pulse Cannon Enhanced Nova Cannon KE Penetrator Mass Driver Improved Datajack Molecular Deconstructor [Rating: 139] Favorites ----------- Power Constructs Engine Ion Engine Power Core Neutrino Core Reactor Constructs Propulsion Light Treads Treads Light Treads Leg Constructs Wheel Armored Wheel Utility Huge Storage Unit Device Seismic Detector Storage Huge Storage Unit Processor Improved Targeting Computer Protection Improved Light Armor Plating Weapon KE Penetrator Energy Gun EM Pulse Gun Energy Cannon Constructs Ballistic Gun KE Penetrator Ballistic Cannon Enhanced Gauss Cannon Launcher Rocket Launcher Impact Weapon Power Maul Slashing Weapon Makeshift Axe Special Melee Weapon Datajack Build | -11 -10 -10 -9 -9 -9 -8 -8 -8 -8 -8 -7 -7 -6 -6 -6 -6 -5 -5 -5 -5 ------- Run | Scr Mat Min Mat Min Exi Min Mat Gar Mat Sto Fac Gar Fac Low Low Dat Pro Fac Gar Fac Slots Evolved 10 | . . . 2 . . . 2 . . . 2 . 2 . . . . 2 . . Power 1 | . . . . . . . . . . . 1 . . . . . . . . . Propulsion 4 | . . . 1 . . . 1 . . . . . 1 . . . . 1 . . Utility 4 | . . . . . . . 1 . . . 1 . 1 . . . . 1 . . Weapon 1 | . . . 1 . . . . . . . . . . . . . . . . . Parts Attached 353 | 6 13 11 12 6 14 13 34 40 18 46 2 38 8 9 9 2 24 11 25 12 Power 13 | 1 1 1 1 . . 1 2 3 . 2 . 1 . . . . . . . . Engine 9 | 1 1 1 1 . . 1 2 . . 1 . 1 . . . . . . . . Core 4 | . . . . . . . . 3 . 1 . . . . . . . . . . Reactor . | . . . . . . . . . . . . . . . . . . . . . Propulsion 79 | 2 4 1 2 2 4 3 16 9 3 14 . 7 2 1 . . 1 4 2 2 Treads 40 | 2 4 1 2 2 4 1 6 5 1 2 . 1 2 1 . . 1 1 2 2 Leg 14 | . . . . . . 1 2 1 1 5 . 2 . . . . . 2 . . Wheel 25 | . . . . . . 1 8 3 1 7 . 4 . . . . . 1 . . Hover . | . . . . . . . . . . . . . . . . . . . . . Flight . | . . . . . . . . . . . . . . . . . . . . . Utility 116 | 1 3 . 1 . 2 . 6 5 7 17 2 13 4 8 8 1 10 5 17 6 Device 96 | . 1 . . . . . 2 3 7 17 2 13 4 6 8 1 9 4 14 5 Storage 4 | 1 1 . . . . . 1 . . . . . . . . . 1 . . . Processor 5 | . 1 . 1 . . . 1 . . . . . . 1 . . . 1 . . Hackware . | . . . . . . . . . . . . . . . . . . . . . Protection 11 | . . . . . 2 . 2 2 . . . . . 1 . . . . 3 1 Artifact . | . . . . . . . . . . . . . . . . . . . . . Weapon 145 | 2 5 9 8 4 8 9 10 23 8 13 . 17 2 . 1 1 13 2 6 4 Energy Gun 6 | 2 . 1 2 . . 1 . . . . . . . . . . . . . . Energy Cannon 17 | . . . . . . . . 1 1 1 . 5 1 . . . 5 . 2 1 Ballistic Gun 50 | . 4 4 4 2 4 2 8 8 . 6 . 2 . . . . 1 1 3 1 Ballistic Cannon 12 | . . . . . . . . 3 4 1 . 3 . . . . 1 . . . Launcher 39 | . 1 2 2 2 2 4 2 6 3 . . 6 1 . . 1 5 1 1 . Special Weapon . | . . . . . . . . . . . . . . . . . . . . . Impact Weapon 15 | . . 1 . . . . . 5 . 5 . 1 . . 1 . 1 . . 1 Slashing Weapon 2 | . . . . . . 2 . . . . . . . . . . . . . . Piercing Weapon . | . . . . . . . . . . . . . . . . . . . . . Special Melee Weapon 4 | . . 1 . . 2 . . . . . . . . . . . . . . 1 Unidentified Prototypes 6 | . . . . . . . . . 1 1 . . . . 2 . 2 . . . Corrupted Parts 2 | . . . . 1 . 1 . . . . . . . . . . . . . . System Corruption 3 | . . . . 1 . 2 . . . . . . . . . . . . . . Parts Lost 43 | . . 1 1 2 8 5 3 5 . . . 4 1 . 1 . . . 1 11 Power 9 | . . 1 1 . . 1 1 3 . . . 1 . . 1 . . . . . Propulsion 11 | . . . . . 5 1 . 1 . . . 1 . . . . . . . 3 Utility 7 | . . . . . 1 . 1 . . . . . 1 . . . . . . 4 Weapon 16 | . . . . 2 2 3 1 1 . . . 2 . . . . . . 1 4 Highest Loss Streak 9 | . . 1 1 1 8 1 2 2 . . . 1 1 . 1 . . . 1 9 To Critical Strikes 8 | . . . . . 7 . . . . . . . . . . . . . . 1 Average Slot Usage (%) 89 | . 96 93 94 96 78 91 94 99 99 99 77 88 92 93 86 81 81 81 73 56 Engine 6 | . 14 9 10 11 11 10 8 1 . 4 7 11 6 6 . . . . . . Core 2 | . . . . . . . . 7 9 4 . 1 6 6 6 6 6 5 2 . Treads 24 | . 26 28 28 33 30 11 24 31 26 26 23 22 20 26 25 25 20 15 11 9 Leg 3 | . . . . . . 10 . . 8 3 . 1 5 6 6 6 6 6 6 3 Wheel 2 | . . . . . . 11 8 3 . 5 7 5 5 . . . . 4 . . Device 7 | . 2 . . . . . 6 5 8 9 7 14 19 19 12 12 11 12 10 8 Storage 8 | . 14 14 11 11 11 11 9 9 9 9 7 7 6 6 6 6 6 5 5 3 Processor 7 | . 10 14 11 11 3 . 8 9 9 9 7 . . . 6 6 6 7 11 8 Protection 1 | . . . . . 7 11 1 3 . . . . . . . . . . . . Energy Gun 1 | . 6 1 11 13 . . . . . . . . . . . . . . . . Energy Cannon 1 | . . . . . . . . 2 . . . 1 1 . . . 3 4 5 4 Ballistic Gun 13 | . 20 18 21 16 8 15 24 18 . 12 16 8 12 9 6 6 6 5 10 8 Ballistic Cannon 3 | . . . . . . . . 1 17 8 . 4 . 3 6 6 6 5 . . Impact Weapon 2 | . . 2 . . . . . 4 9 5 . 5 4 . 3 6 5 5 5 1 Naked Turns 62 | . . . . . . . . . . . . . . . . . . . . 62 Heaviest Build 143 | 14 52 51 52 55 59 59 98 118 122 122 98 122 123 119 115 130 134 135 140 143 Greatest Support 229 | 40 40 40 60 60 60 12 12 80 74 74 12 74 94 94 94 94 94 80 229 155 Greatest Overweight (x) 11 | . 1 1 1 1 1 4 8 9 10 9 8 10 10 1 1 1 1 11 1 . Average Overweight (x) 2 | . . 1 . . . 4 6 4 2 6 7 6 9 1 1 1 1 8 . . Largest Inventory Capacity 25 | 8 20 20 20 20 20 20 25 25 25 25 25 25 25 25 25 25 25 25 25 25 Average Capacity 22 | 7 18 20 20 20 20 20 24 25 25 25 25 25 25 25 25 25 25 25 25 20 Most Carried 25 | 3 17 20 20 20 20 18 25 25 25 25 25 25 25 25 25 25 25 25 25 25 Average Carried 21 | 2 12 19 19 19 16 14 22 24 24 24 23 24 24 24 24 25 24 24 24 19 Final Capacity 25 | 8 20 20 20 20 20 20 25 25 25 25 25 25 25 25 25 25 25 25 25 5 Final Carried 25 | 3 17 20 20 20 14 18 25 25 25 25 25 25 25 25 25 25 25 25 25 3 Scrap Engine Consumption 59 | . . . . . . . . . . . 4 8 2 6 2 . 6 1 21 9 Constructs Created 3 | . . . . . . . . . . . . 2 1 . . . . . . . Constructs Modified 22 | . . . . . . . . . . . . . 2 2 2 . 1 1 10 4 Class Distribution -------------------- 67% | Mutant 13% | Gunner 10% | Scavenger-Gunner 5% | Scavenger-Mutant Dominant Class ---------------- Mutant | -10/Materials Mutant | -10/Mines Gunner | -9/Materials Gunner | -9/Mines Scavenger-Mutant | -9/Exiles Mutant | -8/Mines Scavenger-Gunner | -8/Materials Scavenger-Gunner | -8/Garrison Mutant | -8/Materials Mutant | -8/Storage Mutant | -7/Factory Mutant | -7/Garrison Mutant | -6/Factory Mutant | -6/Lower Caves Mutant | -6/Lower Caves Mutant | -6/Data Miner Mutant | -5/Proximity Caves Mutant | -5/Factory Gunner | -5/Garrison Gunner | -5/Factory Resources | -11 -10 -10 -9 -9 -9 -8 -8 -8 -8 -8 -7 -7 -6 -6 -6 -6 -5 -5 -5 -5 ----------- Run | Scr Mat Min Mat Min Exi Min Mat Gar Mat Sto Fac Gar Fac Low Low Dat Pro Fac Gar Fac Matter Collected 10439 | 218 613 330 491 153 352 708 675 1192 641 1572 . 1097 106 101 218 . 633 192 786 361 Remotely . | . . . . . . . . . . . . . . . . . . . . . Salvage Created 12058 | . 785 405 630 367 124 913 1034 748 1340 1319 . 841 110 . 205 . 830 329 1573 505 Parts 599 | . 51 17 33 18 2 44 52 51 62 64 . 46 5 . 6 . 26 21 72 29 Haulers Intercepted 17 | . 2 . 2 . . . 3 . 4 5 . . . . 1 . . . . . Recyclers Shooed 14 | . 2 2 1 . . . 5 . 2 . . . . . . . . 2 . . Parts Field Recycled . | . . . . . . . . . . . . . . . . . . . . . Retrieved Matter . | . . . . . . . . . . . . . . . . . . . . . Parts Self-Destructed 24 | . . . . . . . . . . . . . . 2 6 . 16 . . . Prevented 6 | . . . . . . . . . . . . . . 5 . . 1 . . . Kills | -11 -10 -10 -9 -9 -9 -8 -8 -8 -8 -8 -7 -7 -6 -6 -6 -6 -5 -5 -5 -5 ------- Run | Scr Mat Min Mat Min Exi Min Mat Gar Mat Sto Fac Gar Fac Low Low Dat Pro Fac Gar Fac Combat Hostiles Destroyed 253 | . 16 5 14 6 5 27 14 26 25 21 . 22 2 . 9 . 17 8 25 11 Melee 12 | . . . . 1 1 7 . . 2 . . 1 . . . . . . . . Guns 99 | . 16 3 7 4 1 3 11 15 . 12 . 3 . . . . 3 . 12 9 Cannons 60 | . . . . . . . . 1 20 9 . 7 2 . . . 2 4 13 2 AOE 79 | . . 2 7 1 3 17 3 9 3 . . 9 . . 9 . 12 4 . . Classes Destroyed 20 | . 7 3 1 2 1 1 . 2 . . . 2 . . . . . . 1 . Worker 17 | . 5 1 . . . 4 1 . . 4 . . . . . . . 1 . 1 Builder 10 | . 2 1 . 1 . . . . 4 . . . . . . . . 1 . 1 Tunneler 3 | . . 1 . . . 2 . . . . . . . . . . . . . . Hauler 17 | . 2 . 2 . . . 3 . 4 5 . . . . 1 . . . . . Recycler 13 | . . 3 1 1 . 2 2 . 3 1 . . . . . . . . . . Carrier 1 | . . . . . . . . . . . . . . . . . . . 1 . Operator 4 | . 1 . . . . . 2 . . 1 . . . . . . . . . . Watcher 6 | . 3 . . . . . . 1 2 . . . . . . . . . . . Swarmer 81 | . 6 2 6 . . 14 . 10 3 . . 9 . . 4 . 11 4 7 5 Grunt 99 | . 10 2 5 4 . 10 9 10 20 10 . 5 . . 5 . 3 3 3 . Brawler 3 | . . . . 1 . 1 . . . . . . . . . . . . 1 . Duelist 4 | . . . . 1 . 1 . . . 1 . . . . . . . . . 1 Protector 1 | . . . . . . . . 1 . . . . . . . . . . . . Sentry 36 | . . . 3 . . . 3 2 2 9 . 4 1 . . . 1 . 9 2 Demolisher 1 | . . 1 . . . . . . . . . . . . . . . . . . Specialist 2 | . . . . . . . . . . . . 2 . . . . . . . . Hunter 13 | . . . . . . 1 2 2 . 1 . 1 . . . . 2 . 2 2 Programmer 5 | . . . . . . . . . . . . 1 1 . . . . 1 1 1 Behemoth 3 | . . . . . . . . 1 . . . . . . . . . . 2 . Enhanced Grunt 1 | . . . . . . . . . . . . . . . . . 1 . . . Decomposer 3 | . . . . . . . . . . . . . . . . . 3 . . . Assembled 7 | . . . . . 7 . . . . . . . . . . . . . . . Thug 1 | . . . 1 . . . . . . . . . . . . . . . . . Best Kill Streak 11 | . 5 5 5 3 4 11 3 6 11 8 . 9 1 . 5 . 8 8 6 6 Combat Bots Only 11 | . 3 2 3 2 4 11 3 6 6 5 . 9 1 . 5 . 8 7 6 6 Max Kills in Single Turn 4 | . 2 1 3 2 3 2 3 2 4 2 . 3 1 . 4 . 3 4 1 2 Gunslinging 1 | . . . . . . . . . . . . . . . . . . . . 1 Exploded 4 | . . 1 3 1 3 2 3 2 1 . . 3 . . 4 . 3 4 . . Melee 1 | . . . . 1 1 1 . . 1 . . 1 . . . . . . . . Uniques/NPCs Destroyed 1 | . . . . . 1 . . . . . . . . . . . . . . . 8R-AWN (-9/Exiles) Combat | -11 -10 -10 -9 -9 -9 -8 -8 -8 -8 -8 -7 -7 -6 -6 -6 -6 -5 -5 -5 -5 -------- Run | Scr Mat Min Mat Min Exi Min Mat Gar Mat Sto Fac Gar Fac Low Low Dat Pro Fac Gar Fac Damage Taken 15176 | . 522 420 311 327 1176 836 746 1998 708 1027 . 1134 172 . 319 . 658 160 1793 2869 Core 2211 | . 112 51 29 28 206 113 98 144 111 86 . 124 3 . 42 . 51 20 99 894 Absorbed by Shields 2341 | . . . . . . . 127 102 212 304 . 454 76 . 73 . 644 149 200 . Reduced by Siege Mode 166 | . . . . . . . . . . . . . . . . . . . 93 73 Regen/Repaired (Parts) 3576 | . 363 . 185 . . . 615 . 311 1053 . . . 17 29 . 107 59 568 269 Core Remaining (%) 55 | 100 . 34 . . . 6 . . . 20 . 82 . . . . 88 . . . Volleys Fired 685 | . 65 22 40 22 40 27 55 54 51 68 . 62 6 . 17 . 50 9 70 27 Largest 3 | . 2 2 3 3 3 2 3 3 2 3 . 3 3 . 1 . 3 3 3 3 Hottest 166 | . 80 73 100 100 69 46 71 147 147 118 . 166 165 . 42 . 138 108 138 120 Shots Fired 1529 | . 129 44 114 47 105 30 155 124 94 174 . 120 18 . 17 . 86 21 175 76 Gun 1086 | . 129 42 111 44 103 15 152 102 . 120 . 54 12 . . . 33 12 100 57 Cannon 360 | . . . . . . . . 8 88 54 . 54 6 . 8 . 40 8 75 19 Launcher 83 | . . 2 3 3 2 15 3 14 6 . . 12 . . 9 . 13 1 . . Special . | . . . . . . . . . . . . . . . . . . . . . Kinetic 1201 | . 79 40 89 32 103 9 152 108 84 170 . 69 12 . 8 . 69 20 100 57 Thermal 133 | . . 2 . . . . . 2 4 . . 31 6 . . . 1 . 68 19 Explosive 83 | . . 2 3 3 2 15 3 14 6 . . 12 . . 9 . 13 1 . . Electromagnetic 112 | . 50 . 22 12 . 6 . . . 4 . 8 . . . . 3 . 7 . Robot Hit Streak 37 | . 7 11 17 12 14 16 12 15 9 31 . 28 5 . 7 . 6 13 37 17 Robot Miss Streak 5 | . 5 2 3 2 2 2 3 4 3 2 . 3 1 . 1 . 3 1 2 2 Penetration Max 1 | . . . . . . . 1 . 1 1 . . . . . . . 1 1 1 Secondary Targets 5 | . 1 . . 1 . . . . . . . . . . . . . . 1 2 Max Gunslinging Chain 1 | . 1 . . 1 . . . . . . . . . . . . . . 1 1 Shots Hit Robots 1049 | . 76 29 71 35 79 42 110 85 55 141 . 68 11 . 7 . 41 19 126 54 Core Hits 553 | . 33 16 36 15 27 47 48 47 46 49 . 39 3 . 21 . 32 16 53 25 Critical Kills 34 | . . . . . . . . . 14 5 . 1 . . . . 1 2 9 2 Critical Parts Destroyed 42 | . . . 1 . . . 1 2 7 6 . 2 . . 1 . 9 1 10 2 Critical Strikes 92 | . . . 2 . . 1 1 4 25 15 . 3 . . 1 . 10 3 23 4 Meltdown 1 | . . . . . . . . . . . . 1 . . . . . . . . Destroy 74 | . . . 1 . . . 1 1 20 11 . 1 . . 1 . 8 3 23 4 Blast 8 | . . . . . . . . . 4 4 . . . . . . . . . . Corrupt 1 | . . . 1 . . . . . . . . . . . . . . . . . Smash 7 | . . . . . . . . 3 1 . . 1 . . . . 2 . . . Sever 1 | . . . . . . 1 . . . . . . . . . . . . . . Melee Attacks 142 | . . 2 . . 4 32 1 23 8 13 . 15 . . 9 . 7 7 17 4 Impact 104 | . . 2 . . . . . 23 8 13 . 15 . . 9 . 7 7 17 3 Slashing 33 | . . . . . . 32 1 . . . . . . . . . . . . . Piercing . | . . . . . . . . . . . . . . . . . . . . . Sneak Attacks 21 | . . . . . 4 8 1 . . 6 . . . . . . . 1 . 1 Combat Hostiles . | . . . . . . . . . . . . . . . . . . . . . Follow-up Attacks . | . . . . . . . . . . . . . . . . . . . . . Damage Inflicted 30462 | . 1326 590 1091 546 1556 2967 1827 2595 2349 2995 . 2425 312 . 1190 . 2537 915 3565 1676 Guns 12147 | . 1165 418 755 386 1125 174 1440 998 . 1500 . 413 125 . . . 350 291 2005 1002 Cannons 6470 | . . . . . . . . 110 1462 978 . 924 187 . 100 . 537 303 1415 454 Explosions 8462 | . 116 159 323 122 413 1554 287 1011 711 . . 911 . . 1090 . 1210 225 145 185 Melee 3162 | . . . . . . 1239 100 476 126 517 . 168 . . . . 440 96 . . Ramming 221 | . 45 13 13 38 18 . . . 50 . . 9 . . . . . . . 35 Kinetic 14783 | . 804 406 546 272 1125 107 1440 1073 1360 2406 . 579 125 . 100 . 839 594 2005 1002 Thermal 3322 | . 116 12 36 89 . 74 . 35 133 . . 628 187 . . . . . 1397 615 Explosive 7810 | . . 159 287 33 413 1480 287 1011 680 . . 911 . . 1090 . 1210 225 . 24 Electromagnetic 1164 | . 361 . 209 114 . 67 . . . 72 . 130 . . . . 48 . 163 . Impact 1823 | . . . . . . . . 476 126 517 . 168 . . . . 440 96 . . Slashing 1339 | . . . . . . 1239 100 . . . . . . . . . . . . . Piercing . | . . . . . . . . . . . . . . . . . . . . . Highest Corruption 9 | . 1 1 . 1 1 3 . . . . . . . . . . . . 1 9 Average Corruption 1 | . 1 1 . 1 1 1 . . . . . . . . . . . . 1 2 Corruption Purged . | . . . . . . . . . . . . . . . . . . . . . Corruption Blocked . | . . . . . . . . . . . . . . . . . . . . . Effects 61 | . 13 17 . 4 16 5 . . . . . . . . . . . . 1 5 Message Errors 13 | . 2 2 . 1 4 4 . . . . . . . . . . . . . . Matter Fused 17 | . 4 4 . 1 6 1 . . . . . . . . . . . . . 1 Heat Flow Errors 9 | . 2 4 . 2 1 . . . . . . . . . . . . . . . Energy Discharges 11 | . 2 3 . . 3 . . . . . . . . . . . . . . 3 Data Loss (minor) 5 | . 2 . . . 2 . . . . . . . . . . . . . . 1 Data Loss (major) 2 | . . 1 . . . . . . . . . . . . . . . . 1 . Misfires 2 | . . 2 . . . . . . . . . . . . . . . . . . Alerts 1 | . . 1 . . . . . . . . . . . . . . . . . . Weapon Failures 1 | . 1 . . . . . . . . . . . . . . . . . . . Overload Shots . | . . . . . . . . . . . . . . . . . . . . . Overflow Damage 1609 | . . . 23 . 9 278 . 119 120 237 . 110 19 . 46 . 560 15 32 41 Projectiles 308 | . . . . . . . . . 43 9 . 31 19 . . . 191 15 . . Explosions 320 | . . . 23 . 9 156 . . . . . 8 . . 46 . 5 . 32 41 Melee 981 | . . . . . . 122 . 119 77 228 . 71 . . . . 364 . . . Knockbacks 27 | . 1 1 . . . . . 1 9 6 . 1 . . . . 8 . . . Impact 6 | . 1 1 . . . . . 1 1 1 . . . . . . 1 . . . Kinetic 17 | . . . . . . . . . 7 3 . 1 . . . . 6 . . . Secondary 4 | . . . . . . . . . 1 2 . . . . . . 1 . . . Self-Inflicted Damage 362 | . 28 . . . . 113 . 51 . . . . . . 46 . 24 . 30 70 Shots 12 | . 1 . . . . 3 . 2 . . . . . . 2 . 2 . 1 1 Rammed 36 | . 7 4 3 7 5 . . . 5 . . . . . . . . . . 5 Targets Rammed 42 | . 9 4 4 8 6 . . . 5 . . 1 . . . . . . . 5 Kicked . | . . . . . . . . . . . . . . . . . . . . . Crushed 6 | . 2 . 1 1 1 . . . . . . 1 . . . . . . . . Highest Temperature 376 | . 256 197 138 280 234 45 64 202 376 298 . 354 363 . 24 . 284 86 369 307 Average Temperature 90 | . 53 49 39 57 124 20 24 37 118 89 . 109 165 . 16 . 127 32 115 96 Received Heat Transfer 2909 | . 168 27 135 138 . 309 301 234 347 375 . 231 30 . 57 . 73 16 207 261 Effects 20 | . 2 . . . . . . . 5 . . 1 . . . . 2 . 8 2 Energy Bleed 8 | . . . . . . . . . 2 . . . . . . . 2 . 3 1 Interference 9 | . 2 . . . . . . . 2 . . 1 . . . . . . 4 . Short Circuit 1 | . . . . . . . . . . . . . . . . . . . 1 . Damage (minor) 2 | . . . . . . . . . 1 . . . . . . . . . . 1 Siege Activations 2 | . . . . . . . . . . . . . . . . . . . 1 1 Total Turns 91 | . . . . . . . . . . . . . . . . . . . 61 30 Longest Duration 61 | . . . . . . . . . . . . . . . . . . . 61 30 Robots Corrupted 1 | . . . . . . . . . . . . 1 . . . . . . . . Combat Hostiles 1 | . . . . . . . . . . . . 1 . . . . . . . . Parts Fried 12 | . 2 . . 1 . . . . . 4 . 2 . . . . 3 . . . Impact Corruptions 53 | . . . . . . . . 4 2 5 . 2 . . . . 40 . . . Robots Melted 1 | . . . . . . . . . . . . 1 . . . . . . . . Combat Hostiles . | . . . . . . . . . . . . . . . . . . . . . Parts Melted 2 | . . . . . . . . . 1 . . 1 . . . . . . . . Heat Transferred 1786 | . 150 37 50 100 . 100 . 37 211 . . 666 185 . . . . . 100 150 Parts Sabotaged . | . . . . . . . . . . . . . . . . . . . . . Parts Stolen . | . . . . . . . . . . . . . . . . . . . . . Parts Stripped . | . . . . . . . . . . . . . . . . . . . . . Power Chain Reactions 7 | . 2 . 1 1 . 1 . . . . . . . . . . . . 2 . Missiles Intercepted . | . . . . . . . . . . . . . . . . . . . . . Alert | -11 -10 -10 -9 -9 -9 -8 -8 -8 -8 -8 -7 -7 -6 -6 -6 -6 -5 -5 -5 -5 ------- Run | Scr Mat Min Mat Min Exi Min Mat Gar Mat Sto Fac Gar Fac Low Low Dat Pro Fac Gar Fac Peak Influence 1339 | . 304 103 409 111 . 539 265 1090 964 508 172 953 609 . . . . 237 1287 1339 Initial 675 | . . 52 19 34 . . 157 86 531 271 172 120 499 . . . . 14 175 675 Average 359 | . 161 37 189 60 . 359 136 646 643 245 172 585 517 . . . . 51 742 976 Maximum Alert Level 4 | . 1 . 2 . . 2 1 3 3 2 . 3 2 . . . . 1 4 4 Low Security (%) 44 | 100 64 100 54 100 . 20 80 13 . 31 100 8 . . . . . 86 10 . Level 1 19 | . 35 . 41 . . 28 19 13 7 60 . 7 . . . . . 13 14 . Level 2 18 | . . . 4 . . 51 . 30 55 8 . 42 100 . . . . . 29 11 Level 3 13 | . . . . . . . . 42 36 . . 40 . . . . . . 14 43 Level 4 3 | . . . . . . . . . . . . . . . . . . . 30 45 Level 5 . | . . . . . . . . . . . . . . . . . . . . . High Security . | . . . . . . . . . . . . . . . . . . . . . Max Security . | . . . . . . . . . . . . . . . . . . . . . Squads Dispatched 31 | . 7 . 1 . . . 6 . 5 2 . . 3 . . . . . . 7 Investigation 15 | . 5 . 1 . . . 2 . 2 1 . . 1 . . . . . . 3 Extermination 1 | . . . . . . . . . . . . . 1 . . . . . . . Reinforcement 11 | . 2 . . . . . 4 . 3 1 . . 1 . . . . . . . Assault 1 | . . . . . . . . . . . . . . . . . . . . 1 Garrison 3 | . . . . . . . . . . . . . . . . . . . . 3 Intercept . | . . . . . . . . . . . . . . . . . . . . . Searches Triggered . | . . . . . . . . . . . . . . . . . . . . . Data Miner Redirects 3 | . . . . . . . . . . . . . . . . . . . . 3 Construction Impeded 3 | . . . . . . . 1 . 2 . . . . . . . . . . . Haulers Reinforced . | . . . . . . . . . . . . . . . . . . . . . Active Scanning Responses . | . . . . . . . . . . . . . . . . . . . . . Cargo Convoy Interrupts 1 | . . . . . . . . . . . . . . . . . . . . 1 Stealth | -11 -10 -10 -9 -9 -9 -8 -8 -8 -8 -8 -7 -7 -6 -6 -6 -6 -5 -5 -5 -5 --------- Run | Scr Mat Min Mat Min Exi Min Mat Gar Mat Sto Fac Gar Fac Low Low Dat Pro Fac Gar Fac Distress Signals 21 | . 2 . 3 . . . 2 1 8 4 . . . . . . . . . 1 Communications Jammed 18 | . . . . . . . . 18 . . . . . . . . . . . . Distress Signals 18 | . . . . . . . . 18 . . . . . . . . . . . . Times Spotted 351 | . 22 7 28 6 5 26 29 29 31 34 . 23 3 . 9 . 19 12 29 39 Peak Tracking Total 14 | . 4 3 5 2 6 6 6 5 9 5 . 7 2 . 5 . 5 8 7 14 Tactical Retreats 18 | . . . 2 . . . . 2 3 1 . 1 . . . . . . 6 3 Traps | -11 -10 -10 -9 -9 -9 -8 -8 -8 -8 -8 -7 -7 -6 -6 -6 -6 -5 -5 -5 -5 ------- Run | Scr Mat Min Mat Min Exi Min Mat Gar Mat Sto Fac Gar Fac Low Low Dat Pro Fac Gar Fac Traps Triggered 21 | . 4 . . . . . 2 6 . 1 . 4 1 . . . . . 3 . Indirectly . | . . . . . . . . . . . . . . . . . . . . . Trap Hack Attempts 17 | . . 17 . . . . . . . . . . . . . . . . . . Triggered 1 | . . 1 . . . . . . . . . . . . . . . . . . Disarmed . | . . . . . . . . . . . . . . . . . . . . . Reprogrammed 2 | . . 2 . . . . . . . . . . . . . . . . . . Reused . | . . . . . . . . . . . . . . . . . . . . . Traps Extracted . | . . . . . . . . . . . . . . . . . . . . . Installed . | . . . . . . . . . . . . . . . . . . . . . Triggered 3 | . 2 . . . . . . . . . . . . 1 . . . . . . Machines | -11 -10 -10 -9 -9 -9 -8 -8 -8 -8 -8 -7 -7 -6 -6 -6 -6 -5 -5 -5 -5 ---------- Run | Scr Mat Min Mat Min Exi Min Mat Gar Mat Sto Fac Gar Fac Low Low Dat Pro Fac Gar Fac Machines Disabled 39 | . 1 . . . 4 2 2 3 2 6 . . 1 . . . 1 2 4 11 Max in Single Turn 8 | . 1 . . . 1 1 1 1 2 1 . . 1 . . . 1 1 1 8 Garrison Access 2 | . . . . . . . . . . 1 . . . . . . . . . 1 Garrison Relay 2 | . . . . . . . . 1 . . . . . . . . . . 1 . Machines Sabotaged . | . . . . . . . . . . . . . . . . . . . . . Overloaded Fab Kills . | . . . . . . . . . . . . . . . . . . . . . Hacking | -11 -10 -10 -9 -9 -9 -8 -8 -8 -8 -8 -7 -7 -6 -6 -6 -6 -5 -5 -5 -5 --------- Run | Scr Mat Min Mat Min Exi Min Mat Gar Mat Sto Fac Gar Fac Low Low Dat Pro Fac Gar Fac Machines Accessed 68 | . 9 1 4 . 2 . 9 4 7 11 1 1 2 1 2 4 . 2 2 6 Terminals 38 | . 6 . 2 . . . 5 4 5 8 . 1 1 . . . . 1 2 3 Fabricators 2 | . . . . . . . . . . . . . . . . . . . . 2 Repair Stations 6 | . 1 . 1 . . . 1 . 1 2 . . . . . . . . . . Recycling Units 4 | . 2 . 1 . . . 1 . . . . . . . . . . . . . Scanalyzers 3 | . . . . . . . 1 . 1 . . . 1 . . . . . . . Garrison Access 5 | . . . . . . . 1 . . 1 1 . . . . . . 1 . 1 Total Hacks 240 | . 38 1 11 . 2 . 31 9 33 37 1 3 10 1 9 28 . 3 6 17 Successful 152 | . 26 1 9 . 2 . 20 3 16 22 1 1 5 1 9 28 . 2 1 5 Failed 88 | . 12 . 2 . . . 11 6 17 15 . 2 5 . . . . 1 5 12 Catastrophic 10 | . . . . . . . . 2 3 2 . . . . . . . 1 . 2 Database Lockouts . | . . . . . . . . . . . . . . . . . . . . . Manual 62 | . 15 . 3 . 1 . 9 . 14 8 . . 2 . . . 1 1 . 8 Terminals 124 | . 20 . 6 . . . 17 9 23 24 . 3 4 . . . . 2 6 10 Fabricators 5 | . . . . . . . . . . . . . . . . . . . . 5 Repair Stations 47 | . 16 . 4 . . . 11 . 6 10 . . . . . . . . . . Recycling Units 4 | . 2 . 1 . . . 1 . . . . . . . . . . . . . Scanalyzers 11 | . . . . . . . 1 . 4 . . . 6 . . . . . . . Garrison Access 8 | . . . . . . . 1 . . 3 1 . . . . . . 1 . 2 Terminal Hacks 83 | . 9 1 4 . 2 . 6 3 6 9 . 1 2 1 9 28 . . 1 1 Record 20 | . . . . . 1 . . . . . . . . . 8 11 . . . . Part Schematic 14 | . 1 . . . . . . . . 4 . . . . . 9 . . . . Robot Schematic 5 | . . . . . . . . . . . . . . . . 5 . . . . Robot Analysis 4 | . 3 . . . . . 1 . . . . . . . . . . . . . Prototype ID Bank 8 | . 2 . 2 . . . . . 1 . . . . . . 3 . . . . Open Door 5 | . . 1 . . . . . 1 . 1 . . . 1 1 . . . . . Branch Access Points 3 | . . . . . . . 1 . . . . . 1 . . . . . . 1 Emergency Access Points 2 | . . . . . . . . . . . . 1 . . . . . . 1 . Repair Station Index 2 | . . . . . . . 1 . . 1 . . . . . . . . . . Scanalyzer Index 1 | . . . . . . . . . 1 . . . . . . . . . . . Alert Level 1 | . 1 . . . . . . . . . . . . . . . . . . . Unreport Threat 7 | . . . 1 . . . 1 . 3 2 . . . . . . . . . . Locate Traps 5 | . 2 . 1 . . . . . 1 1 . . . . . . . . . . Transport Status 1 | . . . . . . . 1 . . . . . . . . . . . . . Zone Layout 2 | . . . . . . . 1 . . . . . 1 . . . . . . . Garrison Registry 1 | . . . . . . . . 1 . . . . . . . . . . . . Security Stations 1 | . . . . . . . . 1 . . . . . . . . . . . . EX-Prototype ID Bank 1 | . . . . . 1 . . . . . . . . . . . . . . . Fabricator Hacks 3 | . . . . . . . . . . . . . . . . . . . . 3 Network Status 1 | . . . . . . . . . . . . . . . . . . . . 1 Load Schematic 1 | . . . . . . . . . . . . . . . . . . . . 1 Build 1 | . . . . . . . . . . . . . . . . . . . . 1 Repair Station Hacks 42 | . 14 . 4 . . . 10 . 5 9 . . . . . . . . . . Scan Component 23 | . 8 . 2 . . . 5 . 3 5 . . . . . . . . . . Repair 19 | . 6 . 2 . . . 5 . 2 4 . . . . . . . . . . Recycling Unit Hacks . | . . . . . . . . . . . . . . . . . . . . . Scanalyzer 4 | . . . . . . . . . 2 . . . 2 . . . . . . . Insert Component 3 | . . . . . . . . . 1 . . . 2 . . . . . . . Analyze 1 | . . . . . . . . . 1 . . . . . . . . . . . Garrison Access Hacks 5 | . . . . . . . 1 . . 1 1 . . . . . . 1 . 1 Unlock Access 3 | . . . . . . . 1 . . . 1 . . . . . . 1 . . Seal Access 2 | . . . . . . . . . . 1 . . . . . . . . . 1 Unauthorized Hacks 15 | . 3 . 1 . . . 3 . 3 3 . . 1 . . . . 1 . . Terminals 11 | . 1 . . . . . 2 . 3 3 . . 1 . . . . 1 . . Botnet 6 | . . . . . . . 1 . 2 2 . . . . . . . 1 . . Operators 5 | . 1 . . . . . 1 . 1 1 . . 1 . . . . . . . Fabricators . | . . . . . . . . . . . . . . . . . . . . . Repair Stations . | . . . . . . . . . . . . . . . . . . . . . Recycling Units 4 | . 2 . 1 . . . 1 . . . . . . . . . . . . . Tunnel 4 | . 2 . 1 . . . 1 . . . . . . . . . . . . . Scanalyzers . | . . . . . . . . . . . . . . . . . . . . . Garrison Access . | . . . . . . . . . . . . . . . . . . . . . Data Cores Recovered . | . . . . . . . . . . . . . . . . . . . . . Used . | . . . . . . . . . . . . . . . . . . . . . Hacking Detections 48 | . 7 . 3 . . . 6 4 6 10 . 1 2 . . . . 2 1 6 Full Trace Events 14 | . . . 1 . . . 1 1 3 2 . 1 1 . . . . . 1 3 Feedback Events . | . . . . . . . . . . . . . . . . . . . . . Feedback Blocked . | . . . . . . . . . . . . . . . . . . . . . Robot Schematics Acquired 5 | . . . . . . . . . . . . . . . . 5 . . . . Robots Built . | . . . . . . . . . . . . . . . . . . . . . Authchips . | . . . . . . . . . . . . . . . . . . . . . Time 152 | . . . . . . . . . . . . . . . . . . . . 152 Total Robot Build Rating . | . . . . . . . . . . . . . . . . . . . . . Part Schematics Acquired 14 | . 1 . . . . . . . . 4 . . . . . 9 . . . . Parts Built . | . . . . . . . . . . . . . . . . . . . . . Authchips . | . . . . . . . . . . . . . . . . . . . . . Time . | . . . . . . . . . . . . . . . . . . . . . Total Part Build Rating . | . . . . . . . . . . . . . . . . . . . . . Parts Repaired 19 | . 6 . 2 . . . 5 . 2 4 . . . . . . . . . . Time 753 | . 168 . 70 . . . 239 . 76 200 . . . . . . . . . . Parts Recycled . | . . . . . . . . . . . . . . . . . . . . . Recycled Matter . | . . . . . . . . . . . . . . . . . . . . . Retrieved Matter . | . . . . . . . . . . . . . . . . . . . . . Retrieved Components . | . . . . . . . . . . . . . . . . . . . . . Parts Scanalyzed 1 | . . . . . . . . . 1 . . . . . . . . . . . Part Schematics Acquired . | . . . . . . . . . . . . . . . . . . . . . Parts Damaged . | . . . . . . . . . . . . . . . . . . . . . Bothacking | -11 -10 -10 -9 -9 -9 -8 -8 -8 -8 -8 -7 -7 -6 -6 -6 -6 -5 -5 -5 -5 ------------ Run | Scr Mat Min Mat Min Exi Min Mat Gar Mat Sto Fac Gar Fac Low Low Dat Pro Fac Gar Fac Used RIF Installer . | . . . . . . . . . . . . . . . . . . . . . Robots Hacked 5 | . . . . . 4 . . . . . . . . . . . . . . 1 Non-combat 3 | . . . . . 3 . . . . . . . . . . . . . . . Combat 2 | . . . . . 1 . . . . . . . . . . . . . . 1 Robot Hacks Applied 5 | . . . . . 4 . . . . . . . . . . . . . . 1 parse_system 5 | . . . . . 4 . . . . . . . . . . . . . . 1 Relay Couplers Released 11 | . . . . . . . . 5 . . . . . . . . . . 6 . Machine Destruction 8 | . . . . . . . . 5 . . . . . . . . . . 3 . Programmers 3 | . . . . . . . . . . . . . . . . . . . 3 . Fabnet Peak Effective % . | . . . . . . . . . . . . . . . . . . . . . Robots Rewired 1 | . . . . . . . . . . . . . . . . . . . 1 . Allies Hacked . | . . . . . . . . . . . . . . . . . . . . . Hacks Repelled . | . . . . . . . . . . . . . . . . . . . . . Allies | -11 -10 -10 -9 -9 -9 -8 -8 -8 -8 -8 -7 -7 -6 -6 -6 -6 -5 -5 -5 -5 -------- Run | Scr Mat Min Mat Min Exi Min Mat Gar Mat Sto Fac Gar Fac Low Low Dat Pro Fac Gar Fac Total Allies 19 | . . 1 . 3 . . . 1 . 10 . . . . . . 1 . 3 . Largest Group 10 | . . 1 . 3 . . . 1 . 10 . . . . . . 1 . 3 3 Highest-Rated Group 227 | . . 31 . 40 . . . 31 . 173 . . . . . . 96 . 227 227 Highest-Rated Ally 96 | . . 31 . 16 . . . 31 . 29 . . . . . . 96 . 85 85 Total Orders 6 | . . . . . . . . . . 2 . . . . . . . . 4 . STAY 3 | . . . . . . . . . . 1 . . . . . . . . 2 . FOLLOW 3 | . . . . . . . . . . 1 . . . . . . . . 2 . Ally Attacks 109 | . . 2 . 9 . . . 3 . 57 . . . . . . 11 . 10 17 Total Damage 2735 | . . 21 . 92 . . . 43 . 1273 . . . . . . 330 . 471 505 Kills 17 | . . 1 . . . . . . . 7 . . . . . . 2 . 3 4 Allies Corrupted . | . . . . . . . . . . . . . . . . . . . . . Allies Melted 1 | . . . . . . . . . . 1 . . . . . . . . . . Intel | -11 -10 -10 -9 -9 -9 -8 -8 -8 -8 -8 -7 -7 -6 -6 -6 -6 -5 -5 -5 -5 ------- Run | Scr Mat Min Mat Min Exi Min Mat Gar Mat Sto Fac Gar Fac Low Low Dat Pro Fac Gar Fac Robot Analysis Total 4 | . 3 . . . . . 1 . . . . . . . . . . . . . Derelict Logs Recovered 8 | . . 1 . 1 . . . . . . . . . 3 1 . 2 . . . Drone Launches . | . . . . . . . . . . . . . . . . . . . . . Drone Recoveries . | . . . . . . . . . . . . . . . . . . . . . Exploration | -11 -10 -10 -9 -9 -9 -8 -8 -8 -8 -8 -7 -7 -6 -6 -6 -6 -5 -5 -5 -5 ------------- Run | Scr Mat Min Mat Min Exi Min Mat Gar Mat Sto Fac Gar Fac Low Low Dat Pro Fac Gar Fac Turns Passed 27316 | 71 2482 1845 1103 1059 1508 958 1915 2074 1052 1765 88 2020 371 1562 2455 189 2021 506 1720 552 Spaces Moved 10584 | 38 880 571 440 592 764 541 546 751 294 517 39 759 152 623 849 76 713 184 828 427 Core 228 | 1 . . . . . . . . . . . . . . . . . . . 227 Treads 7474 | 37 880 571 440 592 764 . . 387 256 159 . 203 1 623 849 76 713 . 723 200 Legs 140 | . . . . . . . . . . . . . . . . . . 35 105 . Wheels 2742 | . . . . . . 541 546 364 38 358 39 556 151 . . . . 149 . . Hover . | . . . . . . . . . . . . . . . . . . . . . Flight . | . . . . . . . . . . . . . . . . . . . . . Fastest Speed 50 | 50 160 240 160 160 160 150 150 195 225 195 195 195 225 245 247 247 246 197 140 50 Average Speed 206 | 157 222 242 186 165 176 150 182 230 247 225 197 228 228 246 247 247 246 237 154 97 Slowest Speed 330 | 160 240 245 245 240 245 150 210 250 250 250 210 330 245 247 247 247 247 282 197 152 Overloaded Moves . | . . . . . . . . . . . . . . . . . . . . . Propulsion Burnouts . | . . . . . . . . . . . . . . . . . . . . . Robots Hopped . | . . . . . . . . . . . . . . . . . . . . . Cave-ins Triggered . | . . . . . . . . . . . . . . . . . . . . . Exploration Rate (%) 61 | 3 97 99 40 99 69 99 57 85 34 87 1 68 6 87 93 74 79 9 84 15 Regions Visited 20 Branch Regions 9 Pre-discovered Areas 10 | . 2 . 1 1 1 . 1 . . . . . . 1 1 1 1 . . . Known Exits Taken 7 | . . . 1 . . . 1 . 1 . 1 . 1 . . . 1 1 . . Unknown Exits Taken 10 | 1 1 1 . 1 1 1 . . . 1 . . . 1 1 1 . . . . Scrap Searched 16 | . . 1 . 1 . 2 . . . . . . . 7 4 . 1 . . . Spaces Dug 196 | . . 1 6 24 . 56 . 20 2 . . 20 . . 9 . 30 5 19 4 Terrain Destroyed 788 | . 6 10 28 34 10 133 10 77 127 7 . 73 2 . 63 . 113 9 33 53 Melee 53 | . . 1 . . . . . 6 2 . . 10 . . 9 . 1 5 16 3 Projectile 113 | . . . . . . . . 5 27 7 . 4 2 . 1 . 40 4 10 13 AOE 622 | . 6 9 28 34 10 133 10 66 98 . . 59 . . 53 . 72 . 7 37 Terrain Rammed . | . . . . . . . . . . . . . . . . . . . . . Walls Destroyed . | . . . . . . . . . . . . . . . . . . . . . Machines Disabled . | . . . . . . . . . . . . . . . . . . . . . Actions | -11 -10 -10 -9 -9 -9 -8 -8 -8 -8 -8 -7 -7 -6 -6 -6 -6 -5 -5 -5 -5 --------- Run | Scr Mat Min Mat Min Exi Min Mat Gar Mat Sto Fac Gar Fac Low Low Dat Pro Fac Gar Fac Total 14615 | 46 1284 989 651 634 857 623 1354 945 497 955 53 911 167 654 1176 77 897 219 1127 499 Wait 2467 | . 296 344 136 1 1 2 683 38 113 287 4 15 1 6 279 . 92 5 144 20 Move 10562 | 37 879 570 439 591 763 540 546 750 293 516 38 756 151 622 848 75 712 184 825 427 Hop . | . . . . . . . . . . . . . . . . . . . . . Pick Up 134 | 3 15 10 11 2 15 8 17 5 4 7 3 7 1 6 6 . 3 2 7 2 Fast Attach 54 | 6 7 1 2 . . 2 5 7 3 7 1 1 . 3 3 . 2 1 2 1 Attach 55 | . 3 2 2 2 11 5 11 4 1 . . 4 2 1 . . 2 2 1 2 Detach 24 | . 5 1 . 1 1 1 6 2 . . 1 1 . 1 . . 3 . . 1 Swap 245 | . 3 8 8 4 3 6 18 29 14 39 1 33 6 5 7 2 20 8 22 9 Drop 124 | . 2 8 9 3 13 . 12 12 5 10 5 6 . 10 7 . 6 1 14 1 Fire 685 | . 65 22 40 22 40 27 55 54 51 68 . 62 6 . 17 . 50 9 70 27 Melee 142 | . . 2 . . 4 32 1 23 8 13 . 15 . . 9 . 7 7 17 4 Ram 5 | . . . . . . . . . . . . . . . . . . . . 5 Kick . | . . . . . . . . . . . . . . . . . . . . . Crush 37 | . 9 4 4 8 6 . . . 5 . . 1 . . . . . . . . Escape Stasis 48 | . . . . . . . . 21 . 8 . 10 . . . . . . 9 . Rewire 16 | . . . . . . . . . . . . . . . . . . . 16 . Trap 17 | . . 17 . . . . . . . . . . . . . . . . . . Miscellaneous . | . . . . . . . . . . . . . . . . . . . . . Route ------- -11/Scrapyard -10/Materials (discovered 5 exits: *Mat x3 / *Min x2) -10/Mines (discovered 2 exits: *Mat x2) -9/Materials (discovered 2 exits: *Mat / *Min) -9/Mines (discovered 3 exits: *Mat x2 / *Exi) -9/Exiles -8/Mines (discovered 2 exits: *Mat x2) -8/Materials (discovered 4 exits: *Fac / Sto x2 / Gar) -8/Garrison (discovered 3 exits: *Mat x3) -8/Materials (discovered 2 exits: *Fac / *Sto) -8/Storage -7/Factory -7/Garrison (discovered 3 exits: *Fac x3) -6/Factory (discovered 2 exits: *Low x2) -6/Lower Caves -6/Lower Caves -6/Data Miner -5/Proximity Caves -5/Factory (discovered 3 exits: Upp / Ext / Gar) -5/Garrison (discovered 3 exits: *Fac x3) -5/Factory (discovered 4 exits: Upp x2 / Ext x2) History --------- Turn | Location | Event 20 | -11/Scrapyard | Discovered new exit (range 15) 72 | -11/Scrapyard | Entered Materials 72 | -10/Materials | Discovered new exit (range 14) 310 | -10/Materials | Discovered new exit (range 11) 311 | -10/Materials | Build established: Mutant 1009 | -10/Materials | Discovered new exit (range 6) 1157 | -10/Materials | Discovered new exit (range 8) 1649 | -10/Materials | Discovered new exit (range 15) 2005 | -10/Materials | Repaired Lgt. Treads 2033 | -10/Materials | Repaired Lgt. Treads 2059 | -10/Materials | Repaired EM Pulse Gun 2086 | -10/Materials | Repaired EM Pulse Gun 2119 | -10/Materials | Repaired Autogun 2152 | -10/Materials | Repaired Autogun 2554 | -10/Materials | Entered Mines 2555 | -10/Mines | Assembled infested the area 2842 | -10/Mines | Core integrity fell below 50% 2940 | -10/Mines | Learned location of 1 exit from Materials 3179 | -10/Mines | Received a Mining Laser from a helpful Derelict 3476 | -10/Mines | Discovered new exit (range 9) 3498 | -10/Mines | Met a Derelict who couldn't figure out how to use a Trap Extractor 4232 | -10/Mines | A weapon hastily lodged in a ceiling crevice suddenly fell to the ground 4272 | -10/Mines | Discovered new exit (range 6) 4399 | -10/Mines | Entered Materials 4399 | -9/Materials | Evolved 2 slots: Propulsion x1, Weapon x1 4400 | -9/Materials | Identified exit to Mines 4736 | -9/Materials | Build established: Gunner 5032 | -9/Materials | Discovered new exit (range 14) 5199 | -9/Materials | Repaired Arm. Treads 5232 | -9/Materials | Repaired Autogun 5502 | -9/Materials | Entered Mines 5507 | -9/Mines | Assisted by bots powering up and referring to "LRC-V3" 5958 | -9/Mines | Discovered new exit (range 10) 6265 | -9/Mines | Learned location of Zion (-7) 6268 | -9/Mines | Received a Rocket Launcher from a helpful Derelict 6323 | -9/Mines | Discovered new exit (range 7) 6555 | -9/Mines | Deemed a non-threat by the Exiles lab entrance 6555 | -9/Mines | Discovered new exit (range 5) 6561 | -9/Mines | Entered Exiles 6598 | -9/Exiles | Discovered new exit (range 15) 6621 | -9/Exiles | Build established: Scavenger-Mutant 6734 | -9/Exiles | Met 8R-AWN 6760 | -9/Exiles | Met EX-HEX 6806 | -9/Exiles | Met EX-BIN 6959 | -9/Exiles | Met EX-DEC 7305 | -9/Exiles | Aligned with FarCom system 7307 | -9/Exiles | Given EX-Vault access code 7343 | -9/Exiles | Opened EX-Vault 7383 | -9/Exiles | Warned to stay clear of 0b10 Research branches 7572 | -9/Exiles | Attacked by the Exiles 7651 | -9/Exiles | Core integrity fell below 50% 7711 | -9/Exiles | Destroyed 8R-AWN 7716 | -9/Exiles | Lost 8 parts (5n1u2w) 7985 | -9/Exiles | Build established: Mutant 8069 | -9/Exiles | Entered Mines 8267 | -8/Mines | Core integrity fell below 20% 8292 | -8/Mines | Destroyed 11 combat bots 8527 | -8/Mines | Discovered new exit (range 5) 8689 | -8/Mines | Discovered new exit (range 7) 9027 | -8/Mines | Entered Materials 9027 | -8/Materials | Evolved 2 slots: Propulsion x1, Utility x1 9251 | -8/Materials | Identified exit to Storage 9599 | -8/Materials | Build established: Scavenger-Gunner 9736 | -8/Materials | Repaired Arm. Wheel 9776 | -8/Materials | Repaired Arm. Treads 9876 | -8/Materials | Repaired Adv. Myomer Leg 9915 | -8/Materials | Repaired Imp. Light Armor Plating 9948 | -8/Materials | Repaired Rocket Launcher 10867 | -8/Materials | Discovered new exit (range 15) 10942 | -8/Materials | Identified exit to Garrison 10942 | -8/Materials | Entered Garrison 10950 | -8/Garrison | Triggered checkpoint 11012 | -8/Garrison | Triggered checkpoint 11200 | -8/Garrison | Triggered checkpoint 11216 | -8/Garrison | Triggered checkpoint 11422 | -8/Garrison | Discovered new exit (range 15) 11474 | -8/Garrison | Triggered checkpoint 11817 | -8/Garrison | Learned Materials security intel 11916 | -8/Garrison | Rescued a captive Derelict 11995 | -8/Garrison | Discovered new exit (range 12) 12102 | -8/Garrison | Triggered checkpoint 12246 | -8/Garrison | Triggered checkpoint 12285 | -8/Garrison | Discovered new exit (range 18) 12285 | -8/Garrison | Discovered new exit (range 61) 12285 | -8/Garrison | Discovered new exit (range 31) 12404 | -8/Garrison | Spotted B-75 Beast 12468 | -8/Garrison | Destroyed B-75 Beast 12619 | -8/Garrison | Build established: Mutant 12682 | -8/Garrison | Spotted B-75 Beast 12682 | -8/Garrison | Spotted B-75 Beast 13016 | -8/Garrison | Entered Materials 13091 | -8/Materials | Core integrity fell below 50% 13320 | -8/Materials | Repaired Hardlight Generator 13360 | -8/Materials | Repaired Arm. Treads 13730 | -8/Materials | Discovered new exit (range 11) 13856 | -8/Materials | Discovered exit to Storage (range 5) 14068 | -8/Materials | Entered Storage 14242 | -8/Storage | Repaired Arm. Wheel 14300 | -8/Storage | Repaired Arm. Medium Treads 14639 | -8/Storage | Assisted by bots powering up and referring to "LRC-V3" 15539 | -8/Storage | Repaired Hyp. Gauss Cannon 15596 | -8/Storage | Repaired Arm. Medium Treads 15801 | -8/Storage | Discovered new exit (range 16) 15833 | -8/Storage | Entered Factory 15833 | -7/Factory | Evolved 2 slots: Power x1, Utility x1 15844 | -7/Factory | Found Scrap Engine 15909 | -7/Factory | Identified exit to Garrison 15921 | -7/Factory | Entered Garrison 15940 | -7/Garrison | Triggered checkpoint 16203 | -7/Garrison | Triggered checkpoint 16276 | -7/Garrison | Destroyed 9 combat bots 16405 | -7/Garrison | Heavy support dispatched to Factory 16534 | -7/Garrison | Discovered new exit (range 10) 16705 | -7/Garrison | Heavy support dispatched to Factory 16924 | -7/Garrison | Triggered checkpoint 17033 | -7/Garrison | Discovered new exit (range 14) 17181 | -7/Garrison | Attempted to access garrison exit controls, blocked by remote lockdown 17499 | -7/Garrison | Attempted to access garrison exit controls, blocked by remote lockdown 17629 | -7/Garrison | Triggered checkpoint 17876 | -7/Garrison | Discovered new exit (range 15) 17941 | -7/Garrison | Entered Factory 17941 | -6/Factory | Evolved 2 slots: Propulsion x1, Utility x1 18220 | -6/Factory | Identified exit to Lower Caves 18312 | -6/Factory | Entered Lower Caves 18522 | -6/Lower Caves | Met a Warlord Commander 18523 | -6/Lower Caves | Learned location of Warlord (-4) 18532 | -6/Lower Caves | Found Encrypted Comm Array 19090 | -6/Lower Caves | Encountered a Warlord checkpoint 19265 | -6/Lower Caves | Learned location of 1 exit from Proximity Caves 19532 | -6/Lower Caves | Discovered new exit (range 6) 19874 | -6/Lower Caves | Entered another Lower Caves area 20144 | -6/Lower Caves | Learned location of Extension (-5) 20987 | -6/Lower Caves | Learned Factory trap positions 20987 | -6/Lower Caves | Learned Research emergency access door positions 20987 | -6/Lower Caves | Learned Factory stockpile data 20987 | -6/Lower Caves | Learned Factory terminal intel 20987 | -6/Lower Caves | Learned Research terminal intel 21420 | -6/Lower Caves | Discovered new exit (range 8) 22062 | -6/Lower Caves | Found Alien Artifact 22062 | -6/Lower Caves | Identified Core Expander 22062 | -6/Lower Caves | Installed Core Expander, added new Weapon slot 22329 | -6/Lower Caves | Entered Data Miner 22329 | -6/Data Miner | Discovered new exit (range 6) 22362 | -6/Data Miner | Met Data Miner 22423 | -6/Data Miner | Learned location of Section 7 (-2) 22423 | -6/Data Miner | Acquired the access code to Warlord's prototype stash 22458 | -6/Data Miner | Received God Mode back door access code from Data Miner 22518 | -6/Data Miner | Entered Proximity Caves 22519 | -5/Proximity Caves | Identified exit to Factory 22799 | -5/Proximity Caves | Escorted by Enhanced Grunt 24043 | -5/Proximity Caves | Attracted the attention of an 0b10 checkpoint 24093 | -5/Proximity Caves | Destroyed 8 combat bots 24352 | -5/Proximity Caves | Acquired the password to a Derelict Tinkerer's latest research 24374 | -5/Proximity Caves | Found Prototype Special Weapon 24537 | -5/Proximity Caves | Learned location of 1 exit from Factory 24539 | -5/Proximity Caves | Entered Factory 24539 | -5/Factory | Evolved 2 slots: Propulsion x1, Utility x1 24540 | -5/Factory | Identified exit to Upper Caves 24541 | -5/Factory | Identified exit to Extension 24542 | -5/Factory | Loaded intel: 94 trap records 24544 | -5/Factory | Loaded intel: 28 terminal locations 25000 | -5/Factory | Destroyed 7 combat bots 25045 | -5/Factory | Identified exit to Garrison 25045 | -5/Factory | Entered Garrison 25268 | -5/Garrison | Build established: Gunner 25471 | -5/Garrison | Triggered checkpoint 25599 | -5/Garrison | Discovered new exit (range 9) 25606 | -5/Garrison | Triggered checkpoint 25668 | -5/Garrison | Spotted B-75 Beast 25700 | -5/Garrison | Destroyed B-75 Beast 25721 | -5/Garrison | Spotted B-75 Beast 25731 | -5/Garrison | Destroyed B-75 Beast 25812 | -5/Garrison | Rewired B-75 Beast 25988 | -5/Garrison | Triggered checkpoint 26012 | -5/Garrison | Triggered checkpoint 26124 | -5/Garrison | Discovered new exit (range 9) 26174 | -5/Garrison | Triggered checkpoint 26253 | -5/Garrison | Garrison Relay disabled 26406 | -5/Garrison | Attempted to access garrison exit controls, blocked by remote lockdown 26500 | -5/Garrison | Found embedded Infiltrators 26536 | -5/Garrison | Triggered checkpoint 26608 | -5/Garrison | Discovered new exit (range 6) 26619 | -5/Garrison | Attempted to access garrison exit controls, blocked by remote lockdown 26765 | -5/Garrison | Entered Factory 26765 | -5/Factory | Accompanied by 3 allies 27049 | -5/Factory | Garrison activated, responded to threat 27065 | -5/Factory | First assault squad dispatched 27192 | -5/Factory | Released all parts (8) 27203 | -5/Factory | Incoming assault squad redirected 27223 | -5/Factory | Lost 9 parts (1n4u4w) 27266 | -5/Factory | Incoming investigation squad redirected 27273 | -5/Factory | Core integrity fell below 50% 27276 | -5/Factory | Cargo convoy interrupted 27277 | -5/Factory | Incoming investigation squad redirected 27290 | -5/Factory | Core integrity fell below 20% 27317 | -5/Factory | Destroyed by exploding Power Conduit Last Messages --------------- 27277_ ALERT: Higher priority target reported, redirecting investigation. 27283_ Penetrated by Slug. 27285_ Slug penetrates Wall. 27286_ Penetrated by Slug. 27289_ Slug penetrates Wall. 27291_ Penetrated by Slug. 27299_ E-15 Imp destroyed. 27304_ System corrupted: Energy discharge (-27). 27305_ W-25 Informer sends out distress signal. 27306_ Fusion Modulator explodes. 27306_ Recycling Unit disabled. 27306_ Adv. Coolant Injector tumbles out of recycling unit. 27315_ K-01 Serf cleans the Power Conduit. 27317_ Power Conduit explodes. 27317_ S-27 Virus destroyed. 27317_ Power Conduit explodes. 27317_ K-01 Serf destroyed. 27317_ S-27 Virus destroyed. 27317_ Power Conduit explodes. 27317_ K-01 Serf destroyed. Map ----- +----------------------------------------------------+ | ?????????????????????????????????????????????????? | | ?????????????????????????????????????????????????? | | ?????????????????????????????????????????????????? | | ?????????????????????????????????????????????????? | | ?????????????????????????????????????????????????? | | ?????????????????????????????????????????????????? | | ?????????????????????????????????????????????????? | | ?????????????????????????????????????????????????? | | ?????????????????????????????????????????????????? | | ?????????????????????????????????????????????????? | | ?????????????????????????????????????????????????? | | ?????????????????????????????????????????????????? | | ?????????????????????????????????????????????????? | | ?????????????????????????????????????????????????? | | ?????????????????????????????????????????????????? | | ?????????????????????????????????????????????????? | | ??????????????????????????????????#+#####????????? | | ?????????????????????########+##### +????????? | | ?????????????????????# = # #????????? | | ?????????????????????# ; ########+# | | ?????????????????????# ! | | ???????????????H?????# | | ?????????????????????# * | | ?????????????????????# = | | ?????????????????????# | | ?????????????????????# @ s | | ?????????????????????# | | ?????????????????????# ###/#########+# | | ?????????????????????# #?# | | ?????????????????????# ;#?# """"""""" | | ?????????????????????###;; ;;#?# | | ???????????????????????### #?# """"""""" | | ??????????????????????????# # # #?# | | ???????????????????????????#######?#?# """"""""" | | ?????????????????????????????????????# | | ?????????????????????????????????????# """"""""" | | ?????????????????????????????????????# | | ?????????????????????????????????????? """"""""" | | ??????????????????????????????????????! | | ?????????????????????????????????????? | | ?????????????????????????????????????############# | | ?????????????????????????????????????????????????? | | ?????????????????????????????????????????????????? | | ???????????????????????????????????###?????##????? | | ???????????????????????????????????# ???? ###### | | ???????????????????????????????????# """" |# [ | | ???????????????????????????????????# """" # "" | | ???????????????????????????????????# """" # " | | ???????????????????????????????????# """" # "F ] | | ???????????????????????????????????# # "" | +----------------------------------------------------+ Best States ------------- Heat Dissipation 67 Energy Generation 54 Energy Capacity 956 Matter Stores 300 Matter Capacity 300 Sight Range 22 Terrain Scan Range 16 Terrain Scan Density 10 Jamming Range 14 Armor Coverage 450 Resistance: TH 25 Weapon Cycling 25 Evasion (%) 50 Targeting Accuracy 8 Recoil Reduction 6 Item Schematics ----------------- Huge Storage Unit | -10/Materials | Hacked Imp. Weapon Shielding | -8/Storage | Hacked Imp. Cooling System | -8/Storage | Hacked Adv. Signal Interpreter | -8/Storage | Hacked Imp. Sensor Array | -8/Storage | Hacked Combat Drone Bay | -6/Data Miner | Free Lgt. Regenerative Plating | -6/Data Miner | Free Enh. Flexi-carbon Leg | -6/Data Miner | Free Prc. Matter Filter | -6/Data Miner | Free Enh. Coil Gun | -6/Data Miner | Free Imp. Antigrav System | -6/Data Miner | Free Imp. Force Booster | -6/Data Miner | Free Hvy. Disruptor Cannon | -6/Data Miner | Free Adv. Particle Charger | -6/Data Miner | Free Robot Schematics ------------------ B-60 Warrior | -6/Data Miner | Free S-27 Virus | -6/Data Miner | Free E-15 Imp | -6/Data Miner | Free B-48 Gladiator | -6/Data Miner | Free H-66 Slayer | -6/Data Miner | Free Fabricated ------------ Nothing Alien Tech Used ----------------- Core Expander Achievements -------------- None Challenges ------------ None Game ------ Seed HybridDroneMantle Manual? 0 Play Time 03:44:12 Cumulative 344.0 hours Start 2022.09.25 @ 20:57:41 End 2022.09.28 @ 18:20:12 Sessions 17 Manual Loads 0 Difficulty Rogue Special Mode None Game No. 156 Rogue 156 Adventurer 0 Explorer 0 Win Type - Total 8 Types 5/0/1/1/0/0/0/1/0 Lore% 87 Gallery% 92 Achievement% 70 Wizard Run 0 Options --------- ASCII 1 Keyboard 1 Movement Vi Keybinds 0 Fullscreen 2 Font 18/Cog Map View 76x50 Tactical HUD 1 Map Filters NONE Filters NONE Steam 0 RUN: 9a3fffed-408c-42de-97f6-467b4ff715ce